Cogmind - Beta 9.6 @@@ ROGUE MODE // 2020.08.01 @ 00:43:21 // Winter2019/RPGLIKE Player: Hermelin Result: Destroyed self with Mini Grenade Launcher Performance ------------- Evolutions (1) 500 Regions Visited (3) 600 Robots Destroyed (51) 255 Value Destroyed (1101) 1101 Prototype IDs (4) 80 Alien Tech Used (0) 0 Bonus (0) 0 TOTAL SCORE: 2536 Bonus ------- None Cogmind --------- Core Integrity 0/600 Matter 470/500 Energy 101/160 System Corruption 0% Temperature Cool (0) Movement Flying (120) Ox1 Location -9/Materials Parts ------- > --- POWER (1) -------- Light Nuclear Core > --- PROPULSION (3) --- Flight Unit Flight Unit > --- UTILITY (5) ------ Improved Heat Sink High-capacity Matter Pod Signal Interpreter Improved Terrain Scanner Shield Generator > --- WEAPON (2) ------- Mini Grenade Launcher > --- INVENTORY (2) ---- Assault Rifle Peak State ------------ > --- POWER ------------ Light Nuclear Core > --- PROPULSION ------- Hover Unit Hover Unit Hover Unit > --- UTILITY ---------- Improved Heat Sink Large Matter Pod Signal Interpreter Improved Terrain Scanner Shield Generator > --- WEAPON ----------- Plasma Cutter Plasma Cutter > --- INVENTORY -------- Assault Rifle Rocket Launcher [Rating: 19] Favorites ----------- Power Light Nuclear Core Engine Ion Engine Power Core Light Nuclear Core Propulsion Hover Unit Wheel Wheel Hover Unit Hover Unit Flight Unit Flight Unit Utility Improved Terrain Scanner Device Improved Terrain Scanner Storage High-capacity Matter Pod Processor Signal Interpreter Weapon Assault Rifle Energy Gun Medium Laser Ballistic Gun Assault Rifle Launcher Mini Grenade Launcher Special Weapon Plasma Cutter Build | -11 -10 -10 -9 ------- Run | Scr Mat Min Mat Slots Evolved 7 | 3 1 2 1 Power . | . . . . Propulsion 2 | 1 . 1 . Utility 4 | 1 1 1 1 Weapon 1 | 1 . . . Parts Attached 31 | 7 10 6 8 Power 5 | 1 1 2 1 Engine 2 | 1 . 1 . Core 3 | . 1 1 1 Reactor . | . . . . Propulsion 10 | 2 5 1 2 Treads . | . . . . Leg . | . . . . Wheel 3 | 2 1 . . Hover 3 | . 2 1 . Flight 4 | . 2 . 2 Utility 9 | 2 2 3 2 Device 5 | 1 1 3 . Storage 2 | . . . 2 Processor 2 | 1 1 . . Hackware . | . . . . Protection . | . . . . Artifact . | . . . . Weapon 7 | 2 2 . 3 Energy Gun 2 | 1 1 . . Energy Cannon . | . . . . Ballistic Gun 2 | 1 1 . . Ballistic Cannon . | . . . . Launcher 1 | . . . 1 Special Weapon 2 | . . . 2 Impact Weapon . | . . . . Slashing Weapon . | . . . . Piercing Weapon . | . . . . Special Melee Weapon . | . . . . Unidentified Prototypes . | . . . . Parts Lost 5 | . . . 5 Power . | . . . . Propulsion 3 | . . . 3 Utility . | . . . . Weapon 2 | . . . 2 Highest Loss Streak 2 | . . . 2 Average Slot Usage (%) 97 | . 100 97 91 Engine 2 | . 5 . . Core 8 | . 7 10 9 Wheel 6 | . 13 . . Hover 18 | . 12 27 19 Device 25 | . 21 29 27 Storage 1 | . . . 9 Processor 9 | . 9 10 9 Energy Gun 9 | . 13 10 . Ballistic Gun 9 | . 13 10 . Special Weapon 2 | . . . 15 Naked Turns . | . . . . Heaviest Build 17 | 10 12 14 17 Greatest Support 31 | 31 31 23 23 Greatest Overweight (x) 1 | . 1 . 1 Average Overweight (x) . | . . . . Largest Inventory Capacity 2 | 2 2 2 2 Average Capacity 1 | 1 2 2 2 Most Carried 2 | . 2 2 2 Average Carried 1 | . 1 1 1 Final Capacity 2 | 2 2 2 2 Final Carried 2 | . 2 2 1 Class Distribution -------------------- 73% | Scavenger-Mutant 26% | Mutant Dominant Class ---------------- Scavenger-Mutant | -10/Materials Scavenger-Mutant | -10/Mines Scavenger-Mutant | -9/Materials Resources | -11 -10 -10 -9 ----------- Run | Scr Mat Min Mat Matter Collected 1030 | 278 343 294 115 Remotely . | . . . . Salvage Created 1398 | 29 634 429 306 Parts 122 | 8 52 38 24 Haulers Intercepted 1 | . 1 . . Recyclers Shooed . | . . . . Parts Field Recycled . | . . . . Retrieved Matter . | . . . . Parts Self-Destructed . | . . . . Prevented . | . . . . Kills | -11 -10 -10 -9 ------- Run | Scr Mat Min Mat Combat Hostiles Destroyed 38 | . 17 14 7 Guns 31 | . 17 14 . Cannons 7 | . . . 7 Classes Destroyed 10 | 1 6 2 1 Worker 3 | . 1 1 1 Builder 1 | . . 1 . Tunneler 4 | 2 . 2 . Hauler 1 | . 1 . . Operator 1 | . 1 . . Watcher 3 | . 3 . . Swarmer 12 | . 3 6 3 Grunt 23 | . 14 6 3 Sentry 1 | . . . 1 Assembled 2 | . . 2 . Best Kill Streak 6 | 1 6 4 2 Combat Bots Only 5 | . 5 3 2 Max Kills in Single Turn 2 | 1 2 2 1 Gunslinging . | . . . . Exploded . | . . . . Melee . | . . . . Uniques/NPCs Destroyed . | . . . . Combat | -11 -10 -10 -9 -------- Run | Scr Mat Min Mat Damage Taken 1895 | . 900 323 672 Core 1516 | . 724 265 527 Absorbed by Shields 307 | . . 80 227 Redirected to Core 1145 | . 549 186 410 Core Remaining (%) 89 | 100 . 79 . Volleys Fired 158 | 3 83 28 44 Largest 2 | 2 2 2 2 Hottest 85 | 70 85 85 40 Shots Fired 299 | 6 162 55 76 Gun 223 | 6 162 55 . Cannon . | . . . . Launcher 2 | . . . 2 Special 74 | . . . 74 Kinetic 114 | 3 83 28 . Thermal 183 | 3 79 27 74 Explosive 2 | . . . 2 Electromagnetic . | . . . . Robot Hit Streak 32 | 2 32 10 5 Robot Miss Streak 7 | 1 4 2 7 Penetration Max . | . . . . Secondary Targets 2 | . 1 1 . Max Gunslinging Chain 1 | . 1 1 . Shots Hit Robots 190 | 3 111 39 37 Core Hits 78 | 2 40 24 12 Critical Hits 8 | . 1 1 6 Critical Kills 6 | . . 1 5 Critical Parts Destroyed 2 | . 1 . 1 Melee Attacks . | . . . . Impact . | . . . . Slashing . | . . . . Piercing . | . . . . Sneak Attacks . | . . . . Combat Hostiles . | . . . . Follow-up Attacks . | . . . . Damage Inflicted 2669 | 38 1466 673 492 Guns 2162 | 38 1451 673 . Cannons . | . . . . Explosions 75 | . . . 75 Melee . | . . . . Ramming 15 | . 15 . . Kinetic 896 | . 626 270 . Thermal 1683 | 38 825 403 417 Explosive 75 | . . . 75 Electromagnetic . | . . . . Impact . | . . . . Slashing . | . . . . Piercing . | . . . . Highest Corruption . | . . . . Average Corruption . | . . . . Corruption Purged . | . . . . Overload Shots . | . . . . Overflow Damage . | . . . . Projectiles . | . . . . Explosions . | . . . . Melee . | . . . . Knockbacks . | . . . . Impact . | . . . . Kinetic . | . . . . Secondary . | . . . . Self-Inflicted Damage 62 | . 7 . 55 Shots 2 | . . . 2 Rammed 2 | . 2 . . Targets Rammed 2 | . 2 . . Kicked . | . . . . Crushed . | . . . . Highest Temperature 186 | 18 186 33 . Average Temperature 52 | 9 62 11 . Received Heat Transfer 619 | . 426 58 135 Siege Activations . | . . . . Robots Corrupted . | . . . . Combat Hostiles . | . . . . Parts Fried . | . . . . Impact Corruptions . | . . . . Robots Melted . | . . . . Combat Hostiles . | . . . . Parts Melted 14 | . 3 1 10 Heat Transferred 4662 | 111 2368 888 1295 Parts Sabotaged . | . . . . Parts Stolen . | . . . . Parts Stripped . | . . . . Power Chain Reactions . | . . . . Missiles Intercepted . | . . . . Alert | -11 -10 -10 -9 ------- Run | Scr Mat Min Mat Peak Influence 291 | 10 291 280 246 Average Influence 149 | 3 137 172 171 Maximum Alert Level 1 | . 1 1 1 Low Security (%) 69 | 100 74 63 58 Level 1 30 | . 25 36 41 Level 2 . | . . . . Level 3 . | . . . . Level 4 . | . . . . Level 5 . | . . . . High Security . | . . . . Max Security . | . . . . Squads Dispatched 7 | . 6 . 1 Investigation 5 | . 5 . . Extermination . | . . . . Reinforcement 2 | . 1 . 1 Assault . | . . . . Garrison . | . . . . Intercept . | . . . . Construction Impeded . | . . . . Haulers Reinforced . | . . . . Stealth | -11 -10 -10 -9 --------- Run | Scr Mat Min Mat Distress Signals 3 | . 1 . 2 Communications Jammed . | . . . . Distress Signals . | . . . . Times Spotted 60 | . 25 16 19 Peak Tracking Total 7 | . 6 3 7 Tactical Retreats 7 | . 1 2 4 Traps | -11 -10 -10 -9 ------- Run | Scr Mat Min Mat Traps Triggered 2 | . 2 . . Indirectly . | . . . . Trap Hack Attempts . | . . . . Triggered . | . . . . Disarmed . | . . . . Reprogrammed . | . . . . Reused . | . . . . Traps Extracted . | . . . . Installed . | . . . . Triggered . | . . . . Machines | -11 -10 -10 -9 ---------- Run | Scr Mat Min Mat Machines Disabled . | . . . . Max in Single Turn . | . . . . Machines Sabotaged . | . . . . Garrisons Compromised . | . . . . Overloaded Fab Kills . | . . . . Fab Network Shutdowns . | . . . . Hacking | -11 -10 -10 -9 --------- Run | Scr Mat Min Mat Machines Accessed 9 | . 8 . 1 Terminals 7 | . 7 . . Fabricators . | . . . . Repair Stations . | . . . . Recycling Units 2 | . 1 . 1 Scanalyzers . | . . . . Garrison Access . | . . . . Total Hacks 44 | . 41 . 3 Successful 30 | . 27 . 3 Failed 13 | . 13 . . Catastrophic 1 | . 1 . . Database Lockouts 1 | . 1 . . Manual 31 | . 30 . 1 Terminals 39 | . 39 . . Fabricators . | . . . . Repair Stations . | . . . . Recycling Units 5 | . 2 . 3 Scanalyzers . | . . . . Garrison Access . | . . . . Terminal Hacks 13 | . 13 . . Robot Analysis 2 | . 2 . . Prototype ID Bank 2 | . 2 . . Level Access Points 1 | . 1 . . Branch Access Points 1 | . 1 . . Terminal Index 1 | . 1 . . Unreport Threat 1 | . 1 . . Locate Traps 2 | . 2 . . Hauler Manifests 1 | . 1 . . Registered Components 1 | . 1 . . Zone Layout 1 | . 1 . . Fabricator Hacks . | . . . . Repair Station Hacks . | . . . . Recycling Unit Hacks 4 | . 2 . 2 Report Inventory 2 | . 1 . 1 Retrieve Matter 1 | . 1 . . Retrieve Components 1 | . . . 1 Scanalyzer . | . . . . Garrison Access Hacks . | . . . . Unauthorized Hacks 13 | . 12 . 1 Terminals 12 | . 12 . . Track 4 | . 4 . . Botnet 6 | . 6 . . Operators 2 | . 2 . . Fabricators . | . . . . Repair Stations . | . . . . Recycling Units 1 | . . . 1 Mask 1 | . . . 1 Scanalyzers . | . . . . Garrison Access . | . . . . Data Cores Recovered . | . . . . Used . | . . . . Hacking Detections 5 | . 5 . . Full Trace Events 2 | . 2 . . Feedback Events . | . . . . Feedback Blocked . | . . . . Robot Schematics Acquired . | . . . . Robots Built . | . . . . Matter . | . . . . Time . | . . . . Total Robot Build Rating . | . . . . Part Schematics Acquired . | . . . . Parts Built . | . . . . Matter . | . . . . Time . | . . . . Total Part Build Rating . | . . . . Parts Repaired . | . . . . Time . | . . . . Parts Recycled . | . . . . Recycled Matter . | . . . . Retrieved Matter . | . . . . Retrieved Components 3 | . . . 3 Parts Scanalyzed . | . . . . Part Schematics Acquired . | . . . . Parts Damaged . | . . . . Bothacking | -11 -10 -10 -9 ------------ Run | Scr Mat Min Mat Used RIF Installer . | . . . . Robots Hacked . | . . . . Non-combat . | . . . . Combat . | . . . . Robot Hacks Applied . | . . . . Relay Couplers Released . | . . . . Robots Rewired . | . . . . Allies Hacked . | . . . . Hacks Repelled . | . . . . Allies | -11 -10 -10 -9 -------- Run | Scr Mat Min Mat Total Allies . | . . . . Largest Group . | . . . . Highest-Rated Group . | . . . . Highest-Rated Ally . | . . . . Total Orders . | . . . . Ally Attacks . | . . . . Total Damage . | . . . . Kills . | . . . . Allies Corrupted . | . . . . Allies Melted . | . . . . Intel | -11 -10 -10 -9 ------- Run | Scr Mat Min Mat Robot Analysis Total 2 | . 2 . . Derelict Logs Recovered 2 | . . 2 . Drone Launches . | . . . . Drone Recoveries . | . . . . Exploration | -11 -10 -10 -9 ------------- Run | Scr Mat Min Mat Turns Passed 1741 | 62 844 515 320 Spaces Moved 1392 | 54 722 467 149 Core 14 | 12 1 . 1 Treads . | . . . . Legs . | . . . . Wheels 235 | 42 193 . . Hover 1102 | . 501 467 134 Flight 41 | . 27 . 14 Fastest Speed 37 | 50 37 52 52 Average Speed 61 | 78 64 53 61 Slowest Speed 120 | 90 100 56 120 Overloaded Moves . | . . . . Propulsion Burnouts . | . . . . Robots Hopped . | . . . . Cave-ins Triggered . | . . . . Exploration Rate (%) 52 | 4 93 96 15 Regions Visited 3 Branch Regions 1 Pre-discovered Areas . | . . . . Known Exits Taken 2 | . 1 1 . Unknown Exits Taken 1 | 1 . . . Scrap Searched 2 | . . 2 . Spaces Dug . | . . . . Terrain Destroyed 20 | . . . 20 Melee . | . . . . Projectile . | . . . . AOE 20 | . . . 20 Actions | -11 -10 -10 -9 --------- Run | Scr Mat Min Mat Total 1905 | 63 939 675 228 Wait 250 | . 76 155 19 Move 1389 | 53 721 466 149 Hop . | . . . . Pick Up 9 | . 5 2 2 Fast Attach 20 | 7 7 3 3 Attach 3 | . . 1 2 Detach . | . . . . Swap 8 | . 3 2 3 Drop 20 | . 11 5 4 Fire 158 | 3 83 28 44 Melee . | . . . . Ram 2 | . 2 . . Kick . | . . . . Crush . | . . . . Escape Stasis . | . . . . Rewire . | . . . . Trap . | . . . . Miscellaneous 46 | . 31 13 2 Route ------- -11/Scrapyard -10/Materials (discovered 5 exits: *Mat x3 / *Min x2) -10/Mines (discovered 2 exits: *Mat x2) -9/Materials History --------- Turn | Location | Event 4 | -11/Scrapyard | Upgraded with Propulsion slot (x1) 4 | -11/Scrapyard | Upgraded with Utility slot (x1) 4 | -11/Scrapyard | Upgraded with Weapon slot (x1) 8 | -11/Scrapyard | Discovered new exit (range 17) 63 | -11/Scrapyard | Entered Materials 307 | -10/Materials | Build established: Mutant 362 | -10/Materials | Discovered new exit (range 11) 519 | -10/Materials | Discovered new exit (range 17) 525 | -10/Materials | Discovered new exit (range 9) 628 | -10/Materials | Reached level 2 648 | -10/Materials | Upgraded with Utility slot (x1) 658 | -10/Materials | Central database locked down 710 | -10/Materials | Core integrity fell below 50% 739 | -10/Materials | Identified exit to Materials 739 | -10/Materials | Identified exit to Mines 799 | -10/Materials | Build established: Scavenger-Mutant 907 | -10/Materials | Entered Mines 923 | -10/Mines | Reached level 3 934 | -10/Mines | Upgraded with Propulsion slot (x1) 934 | -10/Mines | Upgraded with Utility slot (x1) 944 | -10/Mines | Learned Materials trap positions 945 | -10/Mines | Discovered exit to Materials (range 12) 960 | -10/Mines | Received a Rocket Launcher from a helpful Derelict 1091 | -10/Mines | Discovered exit to Materials (range 8) 1168 | -10/Mines | Excavation squad dispatched 1168 | -10/Mines | A large section of the Mines collapsed 1422 | -10/Mines | Entered Materials 1423 | -9/Materials | Loaded intel: 15 trap records 1424 | -9/Materials | Reached level 4 1425 | -9/Materials | Upgraded with Utility slot (x1) 1551 | -9/Materials | Reached level 5 1586 | -9/Materials | Core integrity fell below 50% 1679 | -9/Materials | Core integrity fell below 20% 1742 | -9/Materials | Destroyed self with Mini Grenade Launcher Last Messages --------------- 01599_ Hover Unit destroyed. 01601_ S-10 Pest heat short circuits Broken Flight Unit. 01607_ Acquired 5 matter. 01637_ G-34 Mercenary suffers critical hit. 01637_ Aluminum Leg melted. 01637_ Heat Sink melted. 01637_ G-34 Mercenary destroyed. 01648_ S-10 Pest destroyed. 01667_ U-05 Engineer lays Concrete. 01672_ Hover Unit destroyed. 01679_ Plasma Cutter destroyed. 01681_ W-16 Scout sends out distress signal. 01701_ Flight Unit melted. 01701_ S-10 Pest destroyed. 01710_ Hover Unit destroyed. 01712_ Acquired Flight Unit. 01715_ Acquired 10 matter. 01717_ Acquired Broken Flight Unit. 01720_ Acquired 10 matter. 01726_ Plasma Cutter destroyed. Map ----- +----------------------------------------------------+ | ???????????????????????????????????? | | ???????????????????????????????????? | | ???????????????????????????????????? | | ???????????????????????????????????? | | ???????????????????????????????????? | | ???????????????????????????????????? | | ???????????????????????????????????? | | ??????????????? ???????????????????? | | ??????????????? ???????????????????? | | ??????????????? ???????????????????? | | ??^^??????^???? ???????????????????? | | ??^???????????? ???????????????????? | | ???^??????????? ???????????????????? | | ??^???????????? ?########??????????? | | ??????????????# ##* ! ??????????? | | ???????######## ## #????????? | | ???????# # ## #????????? | | ######## "" # ## """ #????????? | | # # = Y" # ## """"" #????????# | | # "T" # [ "" # ##[ """"" #????? # | | # # ] # ## """"" ### # | | # # # #[ """ + / ?? | | # !% ###+ #!* %=[%* #????????? | | # """= # #####/##########+?? | | # """ # #?#= [ | | # """ + @ g= ??# * | | # # ##?# | | # """ # [ #??##+############# | | # """ ### #### #####?????????????? | | # """ #?# ## =% #?????????????? | | # ### ## #?????????????? | | ######### # """ // #?????????????? | | # ## + """ // #?????????????? | | # """ ## # """ // #?????????????? | | # """ ## # #?????????????? | | # """ ## ###+######?????????????? | | # # ## ##?#?##??#?????????? | | # """ # ## ##### ?????????? | | # """ + #????????????? | | # """ # ######## #????????????? | | # # #???##????????????????? | | # """ ### ####?###?#??????????????? | | # """ #?# #?????#????#????????????? | | # """ *### #?#?##??## ?????????????? | | # = ### ###?##?#?# ?????????????? | | #####%#### ##?##???##??????????????? | | ????###### #?#??#?#???##???????????? | | ??#?#?#### ##?####??#?###??????????? | | ##?#???#?# ##?###?#?? ??#??????????? | | ??????#??# ###?#??#?#??#???????????? | +----------------------------------------------------+ Best States ------------- Heat Dissipation 39 Energy Generation 14 Energy Capacity 250 Matter Stores 500 Matter Capacity 500 Sight Range 17 Terrain Scan Range 16 Terrain Scan Density 260 Evasion (%) 62 Offensive Hacking 5 Defensive Hacking 5 Item Schematics ----------------- None Robot Schematics ------------------ None Fabricated ------------ Nothing Alien Tech Used ----------------- None Achievements -------------- None Challenges ------------ None RPGLIKE | -11 -10 -10 -9 --------- Run | Scr Mat Min Mat Levels Raised 4 | . 1 1 2 XP Earned 9505 | 3000 2305 1850 2350 XP Spent 7090 | 2990 800 1900 1400 Upgrades 15 | 11 1 2 1 Propulsion Slot 2 | 1 . 1 . Utility Slot 4 | 1 1 1 1 Weapon Slot 1 | 1 . . . Mass Support 1 | 1 . . . Inventory Capacity 2 | 2 . . . Sight Range 1 | 1 . . . Terrain Scan Density 2 | 2 . . . Hack Attack % 1 | 1 . . . Hack Defense % 1 | 1 . . . Protomatter Created 401 | . 248 103 50 Integrity Restored 966 | . 636 282 48 Core 915 | . 585 282 48 Parts 51 | . 51 . . Protomatter Decayed 103 | . 34 35 34 Game ------ Seed MiningBackupPick Manual? 0 Play Time 00:28:04 Cumulative 135.7 hours Start 2020.08.01 @ 00:17:39 End 2020.08.01 @ 00:43:21 Sessions 1 Manual Loads 0 Difficulty Rogue Special Mode Winter2019/RPGLIKE Game No. 57 Rogue 57 Adventurer 0 Explorer 0 Win Type - Total 2 Types 1/0/0/1/0/0/0 Lore% 76 Gallery% 68 Achievement% 64 Wizard Run 0 Options --------- ASCII 0 Keyboard 0 Movement Numpad Keybinds 0 Fullscreen 1 Font 14/SmallcapsGlow Map View 84x54 Tactical HUD 1 Map Filters NONE Filters NONE Steam 1 RUN: 237a8144-8249-4ad4-8617-876288825319